Workbook

Sheet 총괄표
B1: 2015년 예천군노인복지관 결산 추가경정 세입 · 세출 총괄표
B2: (단위 : 천원)
B3: 세 입 | H3: 세 출
B4: 관 | C4: 항 | D4: 목 | E4: 당초 | F4: 추경 | G4: 증감 | H4: 관 | I4: 항 | J4: 목 | K4: =E4 -> 당초 | L4: =F4 -> 추경 | M4: 증감
B5: 총계 | E5: =E6+E9+E13+E16+E21+E24 -> 983,866 | F5: =F6+F9+F13+F16+F20+F24 -> 980,739 | G5: =F5-E5 -> -3,127 | H5: 총계 | K5: =K6+K31+K36+K62 -> 983,866 | L5: =L6+L31+L36+L62 -> 980,739 | M5: =M6+M31+M36+M62 -> -3,127
B6: 사업수입 | C6: 소계 | E6: =E7 -> 33,820 | F6: =F7 -> 31,420 | G6: =F6-E6 -> -2,400 | H6: 사무비 | I6: 소계 | K6: =K7+K15+K21 -> 389,631 | L6: =L7+L15+L21 -> 389,626 | M6: =L6-K6 -> -5
C7: 사업수입 | D7: 계 | E7: =E8 -> 33,820 | F7: =F8 -> 31,420 | G7: -2,400 | I7: 인건비 | J7: 계 | K7: =K8+K9+K10+K11+K13+K14 -> 333,510 | L7: =L8+L9+L10+L11+L13+L14 -> 332,849 | M7: -660
D8: 이용자부담금 | E8: 33,820 | F8: 31,420 | G8: -2,400 | J8: 급여 | K8: 225,300 | L8: 225,300 | M8: 0
B9: 보조금 수입 | C9: 소계 | E9: =E10 -> 881,489 | F9: =F10 -> 882,491 | G9: 1,002
C10: 보조금 수입 | D10: 계 | E10: =SUM(E11:E12) -> 881,489 | F10: =SUM(F11:F12) -> 882,491 | G10: 1,002 | J10: 제수당 | K10: 35,360 | L10: 34,760 | M10: -600
D11: 경상보조금수입 | E11: 857,569 | F11: 857,569 | G11: 0 | J11: 퇴직적립금 | K11: 26,250 | L11: 26,250 | M11: 0
D12: 기타보조금수입 | E12: 23,920 | F12: 24,922 | G12: 1,002
B13: 후원금수입 | C13: 소계 | E13: =E14 -> 30,620 | F13: =F14 -> 29,213 | G13: -1,407 | J13: 사회보험부담 | K13: 26,108 | L13: 26,048 | M13: =L13-K13 -> -60
C14: 후원금수입 | D14: 계 | E14: =E15 -> 30,620 | F14: =F15 -> 29,213 | G14: -1,407 | J14: 기타후생경비 | K14: 20,492 | L14: 20,492 | M14: =L14-K14 -> 0
D15: 후원금수입 | E15: 30,620 | F15: 29,213 | G15: -1,407 | I15: 업무추진비 | J15: 계 | K15: =SUM(K16:K20) -> 6,760 | L15: =SUM(L16:L20) -> 6,240 | M15: =SUM(M16:M20) -> -520
B16: 전입금수입 | C16: 소계 | E16: =E17 -> 4,200 | F16: =F17 -> 4,200 | G16: 0 | J16: 기관운영비 | K16: 2,160 | L16: 2,040 | M16: =L16-K16 -> -120
C17: 전입금수입 | D17: 계 | E17: =E18+E19 -> 4,200 | F17: =F18+F19 -> 4,200 | G17: 0 | J17: 직책보조비 | K17: 3,600 | L17: 3,600 | M17: =L17-K17 -> 0
D18: 법인전입금 | E18: 4,200 | F18: 4,200
D19: 기관전입금 | E19: 0 | F19: 0 | G19: 0 | J19: 회의비 | K19: 1,000 | L19: 600 | M19: =L19-K19 -> -400
B20: 이월금수입 | C20: 소계 | E20: =E21 -> 31,047 | F20: =F21 -> 31,047 | G20: 0
C21: 이월금수입 | D21: 계 | E21: =E22+E23 -> 31,047 | F21: =F22+F23 -> 31,047 | G21: 0 | I21: 운영비 | J21: 계 | K21: =SUM(K22:K27) -> 49,362 | L21: =SUM(L22:L27) -> 50,537 | M21: =SUM(M22:M27) -> 1,176
D22: 전년도(후원금)이월금수입 | E22: 18,632 | F22: 18,632 | G22: 0 | J22: 여 비 | K22: 4,200 | L22: 3,840 | M22: =L22-K22 -> -360
D23: 전년도(사업)이월금수입 | E23: 12,415 | F23: 12,415 | G23: 0 | J23: 수용비 및 수수료 | K23: 9,000 | L23: 10,200 | M23: 1,200
B24: 잡수입 | C24: 소계 | E24: =E25 -> 2,690 | F24: =F25 -> 2,368 | G24: -322 | J24: 공공요금 | K24: 16,200 | L24: 15,720 | M24: -480
C25: 잡수입 | D25: 계 | E25: =E26+E27 -> 2,690 | F25: =F26+F27 -> 2,368 | G25: -322 | J25: 제세공과금 | K25: 12,502 | L25: 12,652 | M25: 151
D26: 예금이자수입 | E26: 290 | F26: 368 | G26: 78 | J26: 차량비 | K26: 5,760 | L26: 6,425 | M26: 665
D27: 기타잡수입 | E27: 2,400 | F27: 2,000 | G27: -400 | J27: 연료비 | K27: 1,700 | L27: 1,700 | M27: 0
B28: (단위 : 천원)
B29: 세 입 | H29: 세 출
B30: 관 | C30: 항 | D30: 목 | E30: =E4 -> 당초 | F30: =F4 -> 추경 | G30: 증감 | H30: 관 | I30: 항 | J30: 목 | K30: =K4 -> 당초 | L30: =L4 -> 추경 | M30: 증감
H31: 재산 조성비 | I31: 소계 | K31: =K33+K34+K35 -> 28,543 | L31: =L33+L34+L35 -> 28,725 | M31: =L31-K31 -> 182
I32: 시설비 | J32: 계 | K32: =SUM(K33:K35) -> 28,543 | L32: =SUM(L33:L35) -> 28,725 | M32: 182
J33: 시설비 | K33: 4,200 | L33: 4,000 | M33: -200
J34: 자산취득비 | K34: 15,743 | L34: 16,125 | M34: 382
J35: 시설장비유지비 | K35: 8,600 | L35: 8,600 | M35: 0
H36: 사업비 | I36: 소 계 | K36: =K37 -> 564,733 | L36: =L37 -> 561,428 | M36: -3,305
I37: 사업비 | J37: 계 | K37: =SUM(K38:K61) -> 564,733 | L37: =SUM(L38:L61) -> 561,428 | M37: =SUM(M38:M61) -> -3,305
J38: 정서생활지원사업 | K38: 1,230 | L38: 1,180 | M38: =L38-K38 -> -50
J39: 사회교육지원사업 | K39: 52,115 | L39: 52,213 | M39: =L39-K39 -> 98
J40: 건강생활지원사업 | K40: 4,400 | L40: 4,300 | M40: -100
J41: 재가복지사업 | K41: 1,815 | L41: 4,035 | M41: 2,220
J42: 경로증진사업 | K42: 3,534 | L42: 1,134 | M42: -2,400
J43: 사회참여사업 | K43: 2,320 | L43: 2,280 | M43: -40
J44: 연구개발사업 | K44: 9,900 | L44: 9,800 | M44: -100
J45: =[1]복지관세출!C140 -> 지역자원개발 및 연계사업 | K45: 2,629 | L45: 2,249 | M45: -380
J46: 연계사업 | K46: 1,440 | L46: 1,702 | M46: 262
J47: 아산재단사업 | K47: 11,470 | L47: 11,470 | M47: 0
J48: 무용사업 | K48: 3,000 | L48: 3,000 | M48: 0
J49: 방송통신피해예방사업 | K49: 1,920 | L49: 2,272 | M49: 352
J50: 허위`과대광고사업 | K50: 2,600 | L50: 3,250 | M50: 650
J51: 한국문유산탐방 | K51: 5,200 | L51: 5,200 | M51: 0
J52: 아산노노케어사업 | K52: 9,600 | L52: 9,600 | M52: 0
J53: 노인자원봉사활성화사업 | K53: 1,600 | L53: 1,600 | M53: 0
J54: 경로당활성화사업 | K54: 60,631 | L54: 59,481 | M54: -1,150
J55: 관학연계이동복지관 | K55: 23,000 | L55: 23,000 | M55: 0
J56: 경로식당사업 | K56: 83,337 | L56: 83,337 | M56: 0
J57: 도시락배달사업 | K57: 27,425 | L57: 27,425 | M57: 0
J58: YOYO클럽활성화사업 | K58: 6,000 | L58: 6,000 | M58: 0
J59: YOYO공연예술단사업 | K59: 7,000 | L59: 7,000 | M59: 0
J60: 성인문해사업 | K60: 12,000 | L60: 12,000 | M60: 0
J61: 노인일자리사업 | K61: 230,567 | L61: 227,900 | M61: -2,667
H62: 잡지출 | I62: 소계 | K62: =K64 -> 958 | L62: =L64 -> 959 | M62: =L62-K62 -> 1
I63: 잡지출 | J63: 계 | K63: =K64 -> 958 | L63: =L64 -> 959 | M63: =L63-K63 -> 1
J64: 잡지출 | K64: 958 | L64: 959 | M64: =L64-K64 -> 1
